bitfinex-derivatives/quotes_SOLF0:USTF0_20250509
["timestamp","ask_amount","ask_price","bid_price","bid_amount"]
[1746782788088,17.08853752,165.5,165.41,1.0]
[1746782788289,17.08853752,165.46,165.32,28.26835845]
[1746782788490,350.7966,165.45,165.32,28.26835845]
[1746782788694,367.88513752,165.45,165.32,28.26835845]
[1746782788990,367.88513752,165.45,165.28,5.87]
[1746782789191,350.7966,165.45,165.28,5.87]
[1746782789388,6.0462,165.41,165.28,5.87]
[1746782789585,350.7966,165.45,165.3,17.08853752]
[1746782789792,356.8413,165.45,165.37,6.0473]
[1746782789993,356.8413,165.45,165.3,17.08853752]
[1746782790190,350.7966,165.45,165.3,17.08853752]
[1746782790495,350.7966,165.45,165.29,17.08853752]
[1746782790887,350.7966,165.45,165.3,17.08853752]
[1746782791086,6.0451,165.44,165.37,6.0471]
[1746782791294,350.7966,165.45,165.37,6.0471]
[1746782791592,350.7966,165.45,165.29,62.0]
[1746782791791,367.88513752,165.44,165.28,22.95853752]
[1746782791992,6.0455,165.42,165.35,6.0479]
[1746782792192,367.88513752,165.44,165.28,5.87]
[1746782793185,367.88513752,165.44,165.36,6.0476]
[1746782793392,350.7966,165.44,165.36,6.0476]
[1746782793994,1.2081,165.49,165.33,17.08853752]
[1746782794495,1.2081,165.49,165.38,6.0469]
[1746782794696,352.3189,165.48,165.28,22.95853752]
[1746782794892,350.7966,165.47,165.28,22.95853752]
[1746782795093,6.0455,165.42,165.3,17.08853752]
[1746782795291,350.7966,165.47,165.3,17.08853752]
[1746782795492,6.0461,165.41,165.35,6.048]
[1746782795698,350.7966,165.46,165.3,17.08853752]
[1746782796101,6.0447,165.44,165.3,17.08853752]
[1746782796603,6.0447,165.44,165.38,6.0469]
[1746782796801,6.0451,165.43,165.28,5.87]
[1746782797001,6.0451,165.43,165.3,17.08853752]
[1746782797200,350.7966,165.46,165.34,17.08853752]
[1746782797400,350.7966,165.46,165.35,1.9683]
[1746782797592,350.7966,165.46,165.38,17.08853752]
[1746782797792,350.7966,165.46,165.39,3.9393]
[1746782797993,1.2081,165.49,165.39,3.9393]
[1746782798499,350.7966,165.55,165.39,3.9393]
[1746782798701,352.0088,165.54,165.39,3.9393]
[1746782799402,352.0088,165.54,165.39,2.0023]
[1746782799403,17.08853752,165.52,165.39,2.0023]
[1746782799802,17.08853752,165.52,165.35,1.9683]
[1746782800308,352.0088,165.54,165.35,1.9683]
[1746782800509,17.08853752,165.52,165.35,1.9683]
[1746782800708,17.08853752,165.52,165.31,17.08853752]
[1746782800910,6.0448,165.44,165.32,19.10173752]
[1746782801209,350.7966,165.51,165.32,19.10173752]
[1746782801510,352.3184,165.5,165.32,2.0132]
[1746782802006,352.3184,165.5,165.36,6.0474]
[1746782802517,6.0434,165.48,165.35,17.08853752]
[1746782802711,352.3184,165.5,165.39,17.08853752]
[1746782803003,6.0417,165.53,165.46,6.0437]
[1746782803209,350.7966,165.55,165.43,17.08853752]
[1746782803611,350.7966,165.55,165.39,522.28]
[1746782805412,6.0441,165.46,165.4,6.0461]
[1746782805612,367.88513752,165.55,165.39,522.28]
[1746782805808,350.7966,165.54,165.39,522.28]
[1746782807013,17.08853752,165.51,165.39,522.28]
[1746782807214,2.7317,165.5,165.39,522.28]
[1746782807815,6.0458,165.42,165.38,6.0468]
[1746782808609,350.7966,165.49,165.35,1.0]
[1746782808815,17.08853752,165.43,165.35,1.0]
[1746782809114,352.0079,165.42,165.35,1.0]
[1746782809512,353.5292,165.42,165.35,1.0]
[1746782809913,6.0477,165.36,165.35,1.0]
[1746782810620,350.7966,165.41,165.26,2.0638]
[1746782810812,350.7966,165.4,165.26,4.0095]
[1746782811119,6.0494,165.32,165.28,6.0505]
[1746782811414,350.7966,165.39,165.14,54.51939687]
[1746782811415,17.08853752,165.36,165.14,54.51939687]
[1746782811615,17.08853752,165.36,165.16,5.8776]
[1746782812120,17.08853752,165.32,165.16,5.8776]
[1746782812318,17.08853752,165.28,165.15,7.04641749]
[1746782812711,6.0533,165.21,165.15,13.10171749]
[1746782813006,17.08853752,165.28,165.15,7.04641749]
[1746782813217,6.054,165.19,165.15,7.04641749]
[1746782813413,17.08853752,165.21,165.15,7.04641749]
[1746782813716,6.0547,165.17,165.09,6.0575]
[1746782813915,350.7966,165.26,165.08,1.0]
[1746782814117,17.08853752,165.28,165.08,1.0]
[1746782814118,17.08853752,165.19,165.08,1.0]
[1746782814411,350.7966,165.2,165.08,1.0]
[1746782814614,350.7966,165.19,165.08,1.0]
[1746782814820,350.7966,165.18,165.08,1.0]
[1746782815518,17.08853752,165.15,165.08,1.0]
[1746782816619,350.7966,165.17,165.08,1.0]
[1746782816816,6.0562,165.13,165.08,1.0]
[1746782817015,350.7966,165.17,165.08,1.0]
[1746782817216,17.08853752,165.14,165.08,1.0]
[1746782817426,17.08853752,165.15,165.08,1.0]
[1746782817724,17.08853752,165.15,165.01,1.9454]
[1746782818110,17.08853752,165.15,164.95,522.56]
[1746782818421,17.08853752,165.1,164.92,1.0544496]
[1746782818620,17.08853752,165.1,164.91,17.08853752]
[1746782819226,901.88513752,165.14,164.9,1.05456143]
[1746782819522,901.88513752,165.14,164.96,17.08853752]
[1746782819717,901.88513752,165.14,164.97,1.9194]
[1746782819917,6.0571,165.11,165.03,6.0597]
[1746782820117,350.7966,165.14,165.03,6.0597]
[1746782820319,350.7966,165.14,164.97,1.9194]
[1746782820517,350.7966,165.14,164.98,1.9571]
[1746782820721,350.7966,165.14,164.99,1.8947]
[1746782821123,350.7966,165.14,165.01,6.0604]
[1746782821316,17.08853752,165.12,164.99,1.8947]
[1746782821717,17.08853752,165.12,164.98,1.9571]
[1746782822417,350.7966,165.14,164.98,1.9571]
[1746782822616,6.0572,165.1,165.04,6.0591]
[1746782822814,6.0572,165.1,164.93,1.8947]
[1746782822815,17.18766909,165.05,164.9,1.05456143]
[1746782823117,17.18766909,165.05,164.78,2.28768332]
[1746782823118,0.7497,165.09,164.79,5.7859]
[1746782823327,0.7497,165.09,164.9,17.20470425]
[1746782823523,523.22,165.26,164.98,17.20470425]
[1746782823724,17.20470425,165.17,165.03,6.0594]
[1746782824131,17.20470425,165.17,164.99,1.9235]
[1746782824321,35.39470425,165.17,164.95,523.22]
[1746782824518,17.19232013,165.09,164.95,523.22]
[1746782824716,17.19232013,165.09,164.95,529.2824]
[1746782824917,17.19232013,165.05,164.91,3.8624]
[1746782825128,17.19232013,165.05,164.91,1.8813]
[1746782825330,17.19232013,165.01,164.91,1.8813]
[1746782825524,17.19232013,165.01,164.9,6.0645]
[1746782825733,17.19232013,165.01,164.87,1.8768]
[1746782825926,17.22595052,164.93,164.8,5.10720596]
[1746782826422,18.19,165.0,164.8,5.10720596]
[1746782826623,17.22595052,164.95,164.8,5.10720596]
[1746782826829,6.0645,164.91,164.84,6.0667]
[1746782827025,17.22595052,164.96,164.8,5.10720596]
[1746782827423,6.0635,164.93,164.86,6.066]
[1746782827729,17.44645052,164.98,164.8,5.10720596]
[1746782827928,884.7966,164.97,164.8,5.10720596]
[1746782828123,17.22595052,164.93,164.8,5.10720596]
[1746782828326,76.0,164.92,164.8,4.34430596]
[1746782828525,76.0,164.92,164.67,5.6346]
[1746782828526,1.0610762,164.92,164.67,3.7519]
[1746782828828,46.0,164.91,164.61,1.8827]
[1746782829026,17.25584842,164.88,164.62,9.8591]
[1746782829229,540.81584842,164.88,164.62,3.7844]
[1746782829429,1.0610762,164.87,164.62,3.7844]
[1746782829727,6.0699,164.76,164.62,9.859]
[1746782829922,17.25592899,164.78,164.58,1.0]
[1746782830430,17.26438221,164.79,164.59,21.05658221]
[1746782830630,540.82438221,164.88,164.59,22.93148221]
[1746782830820,17.26438221,164.75,164.59,5.6671]
[1746782831129,1.05863092,164.87,164.59,5.6671]
[1746782831323,523.56,164.88,164.63,17.26438221]
[1746782831520,1.05625787,164.91,164.66,17.24214189]
[1746782831828,1.05625787,164.91,164.67,19.21345488]
[1746782832036,1.05807672,164.9,164.72,17.23003439]
[1746782832230,18.28811111,164.9,164.73,2.0311]
[1746782832531,23.30246256,164.86,164.73,2.0311]
[1746782832729,1.05807672,164.89,164.71,1.9927]
[1746782832927,6.0679,164.81,164.67,1.9732]
[1746782833133,17.24207554,164.88,164.67,1.9732]
[1746782833329,17.24207554,164.96,164.68,17.24207554]
[1746782833525,6.0657,164.87,164.73,6.0706]
[1746782833730,1.05802217,164.95,164.68,17.24207554]
[1746782833922,17.24207554,164.88,164.7,17.24207554]
[1746782834128,79.86742099,165.16,164.74,17.24207554]
[1746782834330,17.24207554,165.04,164.78,17.24207554]
[1746782834629,17.24207554,164.98,164.79,4.098]
[1746782834832,17.24207554,164.94,164.79,4.098]
[1746782835027,523.88,165.06,164.79,4.098]
[1746782835330,17.24207554,164.92,164.79,4.098]
[1746782835834,17.24207554,164.96,164.79,66.098]
[1746782836033,17.24207554,164.92,164.79,4.098]
[1746782836233,17.24207554,164.88,164.69,17.24207554]
[1746782836439,17.24207554,164.96,164.7,1.971]
[1746782836733,17.24207554,164.91,164.73,17.24207554]
[1746782836934,1.05582524,165.05,164.73,17.24207554]
[1746782837233,17.24207554,164.95,164.72,17.24207554]
[1746782837436,6.0648,164.9,164.78,6.0686]
[1746782837632,6.0648,164.9,164.74,17.24207554]
[1746782837633,17.24207554,165.04,164.79,3.9287]
[1746782837933,523.88,165.06,164.79,3.9287]
[1746782838133,17.24207554,164.98,164.8,1.8699]
[1746782838334,17.24207554,165.04,164.8,1.8699]
[1746782838533,17.24207554,164.96,164.83,6.0671]
[1746782838828,17.24207554,164.96,164.8,1.8699]
[1746782839234,17.24207554,164.92,164.8,1.8699]
[1746782839432,17.24207554,165.04,164.8,1.8699]
[1746782839636,17.24207554,164.96,164.8,1.8699]
[1746782840636,6.0653,164.88,164.81,6.0675]
[1746782840840,17.24207554,164.96,164.8,1.8699]
[1746782841342,350.7966,165.05,164.8,1.8699]
[1746782841635,17.24207554,164.96,164.8,1.8699]
[1746782841841,6.0656,164.87,164.8,1.8699]
[1746782842136,17.24207554,164.96,164.8,1.8699]
[1746782842341,17.24207554,164.97,164.8,1.8699]
[1746782842535,17.24207554,164.96,164.79,2.0417]
[1746782842735,17.24207554,164.88,164.79,2.0417]
[1746782843131,17.24207554,164.89,164.79,2.0417]
[1746782843327,6.0678,164.82,164.75,6.0697]
[1746782843533,368.03867554,164.88,164.74,3.985]
[1746782844240,350.7966,164.95,164.77,17.24207554]
[1746782844441,350.7966,164.94,164.77,17.24207554]
[1746782844635,6.0642,164.91,164.77,17.24207554]
[1746782844835,350.7966,164.94,164.76,17.24207554]
[1746782845230,350.7966,164.94,164.74,3.985]
[1746782845439,350.7966,164.94,164.84,17.24207554]
[1746782845644,6.0616,164.98,164.91,6.0641]
[1746782845830,350.7966,165.02,164.88,17.24207554]
[1746782846340,350.7966,165.02,164.88,79.24207554]
[1746782846937,350.7966,165.02,164.85,5.846]
[1746782847132,350.7966,165.01,164.85,5.846]
[1746782847445,350.7966,165.01,164.84,524.16]
[1746782847637,350.7966,165.01,164.85,6.0505]
[1746782848441,17.24207554,164.97,164.85,6.0505]
[1746782848943,350.7966,164.96,164.85,6.0505]
[1746782849438,368.03867554,164.95,164.85,2.0378]
[1746782849643,368.03867554,164.95,164.84,524.16]
[1746782849644,350.7966,164.94,164.84,524.16]
[1746782849840,350.7966,164.93,164.78,4.0854]
[1746782850044,350.7966,164.92,164.78,4.0854]
[1746782850642,368.03867554,164.92,164.78,4.0854]
[1746782850945,6.066,164.86,164.79,6.0685]
[1746782851140,350.7966,164.91,164.78,4.0854]
[1746782851441,17.24207554,164.89,164.78,2.0378]
[1746782851645,17.24207554,164.87,164.75,524.04]
[1746782851843,350.7966,164.88,164.75,524.04]
[1746782852545,6.066,164.86,164.79,6.0686]
[1746782852745,350.7966,164.88,164.75,524.04]
[1746782853244,350.7966,164.88,164.76,2.0664]
[1746782853445,368.03867554,164.88,164.76,2.0664]
[1746782853940,350.7966,164.88,164.76,2.0664]
[1746782854141,6.066,164.86,164.76,2.0664]
[1746782854343,350.7966,164.88,164.76,2.0664]
[1746782854651,350.7966,164.94,164.76,2.0664]
[1746782854946,350.7966,164.93,164.78,17.24207554]
[1746782855149,350.7966,164.93,164.76,2.0664]
[1746782855340,350.7966,164.93,164.76,19.30847554]
[1746782855846,350.7966,164.93,164.76,2.0664]
[1746782856046,17.24207554,164.91,164.76,2.0664]
[1746782856437,6.0667,164.85,164.78,6.0686]
[1746782856651,17.24207554,164.91,164.76,2.0664]
[1746782856940,350.7966,165.07,164.76,2.0664]
[1746782857142,17.24207554,165.04,164.76,19.30847554]
[1746782857341,17.24207554,164.96,164.76,19.30847554]
[1746782857543,17.24207554,164.97,164.76,19.30847554]
[1746782857844,17.24207554,164.97,164.77,62.0]
[1746782858340,17.24207554,164.93,164.77,62.0]
[1746782858850,17.24207554,164.93,164.76,2.0664]
[1746782859145,17.24207554,164.8,164.62,524.18]
[1746782859340,350.7966,164.79,164.62,524.18]
[1746782859537,350.7966,164.78,164.62,524.18]
[1746782859939,6.0718,164.71,164.65,6.0737]
[1746782860144,350.7966,164.77,164.62,524.18]
[1746782860647,6.0704,164.74,164.62,524.18]
[1746782860839,350.7966,164.77,164.62,524.18]
[1746782861041,6.0692,164.78,164.71,6.0715]
[1746782861240,17.24207554,164.81,164.62,524.18]
[1746782861442,17.24207554,164.77,164.59,5.9669]
[1746782861740,350.7966,164.8,164.59,5.9669]
[1746782861942,17.24207554,164.79,164.6,17.24207554]
[1746782862141,350.7966,164.8,164.62,17.24207554]
[1746782863148,6.0702,164.75,164.69,6.072]
[1746782863353,350.7966,164.8,164.62,17.24207554]
[1746782863851,6.0692,164.78,164.72,6.071]
[1746782864152,350.7966,164.8,164.59,5.9669]
[1746782864351,350.7966,164.8,164.63,17.24207554]
[1746782864551,350.7966,164.8,164.59,5.9669]
[1746782864552,350.7966,164.8,164.67,17.24207554]
[1746782864753,350.7966,164.85,164.68,2.0503]
[1746782865046,352.00989774,164.84,164.71,17.24207554]
[1746782865252,1.21329774,164.84,164.75,17.24207554]
[1746782865451,1.21329774,164.84,164.76,2.0503]
[1746782865851,1.21329774,164.84,164.69,3.8484]
[1746782866053,1.21329774,164.84,164.74,6.0701]
[1746782866450,6.0697,164.77,164.7,2.0503]
[1746782866654,368.03867554,164.83,164.64,524.34]
[1746782866856,350.7966,164.82,164.64,524.34]
[1746782867056,17.24207554,164.79,164.64,524.34]
[1746782867248,350.7966,164.81,164.64,541.58207554]
[1746782867454,356.8647,164.81,164.74,6.0701]
[1746782867654,1.21329774,164.84,164.7,1.0]
[1746782867956,17.24207554,164.82,164.7,1.0]
[1746782868256,17.24207554,164.74,164.6,1.05640216]
[1746782868454,17.24207554,164.71,164.57,1.9421]
[1746782868860,17.24207554,164.72,164.57,1.9421]
[1746782869058,350.7966,164.71,164.57,1.9421]
[1746782869253,17.24207554,164.7,164.57,1.9421]
[1746782869452,350.7966,164.7,164.57,1.9421]
[1746782870551,350.7966,164.7,164.58,18.24207554]
[1746782870758,902.03867554,164.8,164.67,6.0729]
[1746782870957,1.21366587,164.79,164.62,17.24207554]
[1746782871154,6.0707,164.74,164.66,6.0733]
[1746782871359,17.24207554,164.78,164.6,17.24207554]
[1746782871560,17.24207554,164.78,164.59,62.0]
[1746782871755,17.24207554,164.78,164.64,6.0741]
[1746782871956,1.21381319,164.77,164.64,6.0741]
[1746782872155,1.21381319,164.77,164.6,17.24207554]
[1746782872360,1.21381319,164.77,164.58,1.0]
[1746782872856,17.24207554,164.76,164.58,1.0]
[1746782873055,1.21381319,164.77,164.58,1.0]
[1746782873255,6.0732,164.67,164.59,6.076]
[1746782873558,17.24207554,164.72,164.58,1.0]
[1746782873759,350.7966,164.71,164.58,1.0]
[1746782873956,17.24207554,164.68,164.58,1.0]
[1746782874156,368.03867554,164.7,164.58,1.0]
[1746782874357,350.7966,164.7,164.58,1.0]
[1746782874560,368.03867554,164.7,164.58,1.0]
[1746782874758,1.21440281,164.69,164.58,1.0]
[1746782875361,17.24207554,164.68,164.58,1.0]
[1746782876462,17.24207554,164.64,164.5,530.5393]
[1746782876662,17.24207554,164.6,164.5,524.46]
[1746782876960,6.0778,164.54,164.41,530.6579]
[1746782877263,534.0,164.63,164.39,556.82948245]
[1746782877454,6.0781,164.54,164.39,556.82948245]
[1746782877658,350.7966,164.62,164.41,17.24207554]
[1746782877659,17.24207554,164.6,164.41,17.24207554]
[1746782877855,17.24207554,164.6,164.4,1.05791154]
[1746782878062,350.7966,164.62,164.4,543.05998708]
[1746782878267,17.24207554,164.6,164.4,542.00207554]
[1746782878564,6.0783,164.53,164.4,524.76]
[1746782878866,17.24207554,164.56,164.4,524.76]
[1746782879059,6.0785,164.53,164.4,524.76]
[1746782879259,350.7966,164.62,164.4,524.76]
[1746782879465,17.24207554,164.58,164.4,524.76]
[1746782879764,1.21528832,164.57,164.4,524.76]
[1746782879963,1.21528832,164.57,164.42,17.24207554]
[1746782880164,6.0774,164.56,164.42,17.24207554]
[1746782880366,1.21528832,164.57,164.42,17.24207554]
[1746782880867,1.21528832,164.57,164.44,17.24207554]
[1746782881062,1.21528832,164.57,164.45,2.0315]
[1746782881265,1.21528832,164.57,164.47,17.24207554]
[1746782882264,1.21528832,164.57,164.56,6.0771]
[1746782882666,17.24207554,164.72,164.52,525.0]
[1746782882868,17.24207554,164.72,164.53,2.0532]
[1746782883366,350.7966,164.75,164.56,17.24207554]
[1746782883367,17.24207554,164.73,164.56,17.24207554]
[1746782883665,534.0,164.78,164.57,3.7998]
[1746782883863,542.24207554,164.79,164.57,3.7998]
[1746782884167,350.7966,164.78,164.59,17.24207554]
[1746782884465,6.0712,164.72,164.67,6.0729]
[1746782885063,350.7966,164.78,164.63,17.24207554]
[1746782885460,350.7966,164.78,164.61,2.0532]
[1746782885765,17.24207554,164.74,164.61,2.0532]
[1746782885962,6.0734,164.66,164.6,6.0755]
[1746782886163,17.24207554,164.71,164.57,3.7998]
[1746782886363,17.24207554,164.66,164.52,525.0]
[1746782886563,17.24207554,164.66,164.55,6.0771]
[1746782886770,17.24207554,164.66,164.52,525.0]
[1746782887063,6.0763,164.58,164.52,525.0]
[1746782887263,17.24207554,164.62,164.48,1.9527]
[1746782887464,17.24207554,164.58,164.46,3.8374]
[1746782887664,6.0774,164.55,164.46,3.8374]
[1746782888071,350.7966,164.63,164.46,3.8374]
[1746782889165,350.7966,164.62,164.5,6.0792]
[1746782889371,19.05077756,164.71,164.46,3.8374]
[1746782889571,351.86877479,164.7,164.46,3.8374]
[1746782889772,19.05077756,164.66,164.46,3.8374]
[1746782890072,1.07217479,164.65,164.43,524.9]
[1746782890371,19.05077756,164.61,164.43,524.9]
[1746782890568,350.7966,164.6,164.43,524.9]
[1746782890764,6.0789,164.51,164.44,6.0812]
[1746782890969,350.7966,164.58,164.38,3.9041]
[1746782891171,350.7966,164.57,164.38,3.9041]
[1746782891364,350.7966,164.56,164.39,1.21661901]
[1746782891566,525.04,164.64,164.39,1.21661901]
[1746782891764,19.05077756,164.55,164.39,1.21661901]
[1746782891964,1.07171009,164.57,164.39,1.21661901]
[1746782892170,1.07171009,164.63,164.39,1.21661901]
[1746782892376,1.07171009,164.56,164.39,1.21661901]
[1746782892579,19.08856293,164.51,164.39,1.21661901]
[1746782892776,1.07171009,164.63,164.27,2.0093]
[1746782893076,1.07171009,164.62,164.27,2.0093]
[1746782893276,19.08856293,164.54,164.27,2.0093]
[1746782893582,6.0813,164.45,164.27,2.0093]
[1746782893970,525.04,164.64,164.36,6.0844]
[1746782894172,1.07300829,164.63,164.27,2.0093]
[1746782894567,19.08856293,164.58,164.37,6.0839]
[1746782894869,1.07300829,164.57,164.31,19.08856293]
[1746782895067,1.07300829,164.57,164.27,2.0093]
[1746782895677,19.0654505,164.56,164.27,2.0093]
[1746782895876,1.07300829,164.55,164.27,2.0093]
[1746782896181,19.0654505,164.59,164.29,19.0654505]
[1746782896371,1.07300829,164.54,164.29,19.0654505]
[1746782896574,1.07300829,164.59,164.3,1.11770523]
[1746782896773,6.0798,164.49,164.38,6.0836]
[1746782897280,6.0802,164.48,164.38,6.0836]
[1746782897480,19.0654505,164.55,164.36,6.0842]
[1746782897682,350.7966,164.54,164.32,19.0654505]
[1746782897873,351.8695021,164.54,164.27,2.0093]
[1746782898078,350.7966,164.54,164.27,2.0093]
[1746782898279,350.7966,164.54,164.28,20.18312945]
[1746782898479,350.7966,164.54,164.37,6.084]
[1746782898781,350.7966,164.53,164.27,2.0093]
[1746782898978,19.0654505,164.5,164.31,6.086]
[1746782899179,1.0736075,164.52,164.27,2.0093]
[1746782899383,1.0736075,164.52,164.27,21.0747505]
[1746782899681,1.0736075,164.54,164.27,2.0093]
[1746782899885,369.8620505,164.61,164.32,19.0654505]
[1746782900085,19.0654505,164.56,164.28,1.11768283]
[1746782900279,350.7966,164.61,164.29,19.0654505]
[1746782900584,6.0812,164.45,164.35,6.0848]
[1746782900881,350.7966,164.61,164.36,5.9051]
[1746782901083,1.21506682,164.6,164.36,5.9051]
[1746782903379,6.0796,164.5,164.41,6.0825]
[1746782903573,1.21506682,164.6,164.36,5.9051]
[1746782903777,1.21506682,164.6,164.39,19.0654505]
[1746782903976,6.0777,164.55,164.39,19.0654505]
[1746782904282,1.21506682,164.6,164.36,5.9051]
[1746782904482,1.21506682,164.6,164.37,19.0654505]
[1746782904680,1.21506682,164.6,164.36,5.9051]
[1746782905182,1.21506682,164.6,164.39,19.0654505]
[1746782906875,1.21506682,164.6,164.44,19.0654505]
[1746782907080,1.21506682,164.6,164.45,2.0658]
[1746782907377,1.21506682,164.6,164.46,525.34]
[1746782907588,1.21506682,164.6,164.46,529.2974]
[1746782908278,1.21506682,164.6,164.46,3.9574]
[1746782908583,20.28051732,164.6,164.46,3.9574]
[1746782908784,20.28051732,164.6,164.36,525.34]
[1746782908785,1.07370512,164.59,164.36,525.34]
[1746782908979,1.07370512,164.59,164.37,5.9753]
[1746782909184,6.0796,164.5,164.37,5.9753]
[1746782909483,1.21521448,164.58,164.37,5.9753]
[1746782909689,1.21521448,164.58,164.42,6.0821]
[1746782909976,1.21521448,164.58,164.37,5.9753]
[1746782910181,6.0804,164.48,164.4,6.0826]
[1746782910378,1.21521448,164.58,164.39,17.29853027]
[1746782910779,1.21521448,164.58,164.43,17.29853027]
[1746782911083,1.21521448,164.58,164.37,5.9753]
[1746782911284,1.21521448,164.58,164.4,17.29853027]
[1746782911484,1.21521448,164.58,164.37,5.9753]
[1746782911780,1.21521448,164.58,164.4,19.05257569]
[1746782912882,6.0778,164.54,164.46,6.0807]
[1746782913083,1.21521448,164.58,164.37,5.9753]
[1746782913586,1.07525915,164.57,164.37,5.9753]
[1746782913788,350.7966,164.56,164.37,5.9753]
[1746782913983,6.0806,164.47,164.37,5.9753]
[1746782914189,352.01203603,164.55,164.37,5.9753]
[1746782914388,352.0121099,164.54,164.37,5.9753]
[1746782914893,350.7966,164.53,164.37,5.9753]
[1746782915078,350.7966,164.53,164.37,3.9095]
[1746782915383,19.05257569,164.5,164.25,525.34]
[1746782915591,6.0834,164.39,164.31,6.086]
[1746782915786,350.7966,164.49,164.25,525.34]
[1746782915989,350.7966,164.48,164.25,525.34]
[1746782916183,6.0836,164.39,164.25,525.34]
[1746782916386,20.12807972,164.47,164.25,525.34]
[1746782916586,350.7966,164.46,164.25,525.34]
[1746782916786,351.87210403,164.46,164.26,1.05897389]
[1746782917292,6.0813,164.45,164.27,19.05257569]
[1746782917493,350.7966,164.46,164.27,19.05257569]
[1746782917892,350.7966,164.52,164.31,19.05257569]
[1746782918185,79.86742099,164.58,164.32,1.9643]
[1746782918391,7.2936099,164.54,164.45,6.0811]
[1746782918587,1.2155099,164.54,164.46,5.8063]
[1746782918788,79.86742099,164.58,164.46,5.8063]
[1746782918988,79.86742099,164.58,164.47,19.05257569]
[1746782919192,64.29922099,164.58,164.47,19.05257569]
[1746782919393,56.17442099,164.58,164.47,19.05257569]
[1746782919687,56.17442099,164.58,164.56,6.0768]
[1746782919891,153.1817265,164.6,164.52,525.48]
[1746782920086,153.1817265,164.6,164.55,6.0773]
[1746782920290,153.1817265,164.6,164.52,525.48]
[1746782920493,113.34961164,164.6,164.53,19.05257569]
[1746782920690,2.0478,164.74,164.53,19.05257569]
[1746782920894,2.0478,164.74,164.58,19.05257569]
[1746782921093,1.8882,164.75,164.6,6.0753]
[1746782921295,2.0478,164.73,164.55,19.05257569]
[1746782921592,2.0478,164.73,164.59,6.0757]
[1746782921795,2.0478,164.73,164.56,19.05257569]
[1746782922293,2.0478,164.73,164.55,6.0773]
[1746782922490,2.0478,164.73,164.52,525.48]
[1746782922691,2.0478,164.73,164.53,1.11600748]
[1746782922990,21.04939556,164.74,164.58,28.31525586]
[1746782923292,6.0753,164.61,164.58,28.31525586]
[1746782923489,19.0312582,164.73,164.58,28.31525586]
[1746782923888,6.0758,164.6,164.58,28.31525586]
[1746782924290,6.0758,164.6,164.58,15.87045586]
[1746782924593,6.0763,164.58,164.56,1e-08]
[1746782925093,19.0312582,164.67,164.44,7.08999757]
[1746782925290,19.0312582,164.7,164.45,1.9356]
[1746782925495,19.0312582,164.59,164.44,7.08999757]
[1746782925793,2.28553091,164.69,164.44,7.08999757]
[1746782925995,19.0312582,164.65,164.44,7.08999757]
[1746782927089,1.21440281,164.69,164.44,7.08999757]
[1746782927296,1.21477162,164.64,164.44,7.08999757]
[1746782927492,1.21477162,164.64,164.43,3.89]
[1746782928394,1.21477162,164.64,164.43,22.9212582]
[1746782928697,1.21477162,164.64,164.43,3.89]
[1746782929704,5.9132,164.63,164.44,1.0]
[1746782929892,6.0772,164.56,164.48,6.0799]
[1746782930106,5.9132,164.63,164.44,1.0]
[1746782930696,1.2149192,164.62,164.44,1.0]
[1746782930897,6.0791,164.51,164.44,1.0]
[1746782931095,352.0115192,164.62,164.44,1.0]
[1746782931900,1.2149192,164.62,164.44,1.0]
[1746782932496,6.0763,164.59,164.44,1.0]
[1746782932695,1.2149192,164.62,164.45,19.0312582]
[1746782934600,5.9362,164.71,164.44,1.0]
[1746782934803,5.9362,164.71,164.53,6.078]
[1746782934995,5.9362,164.71,164.54,1.9346]
[1746782935601,1.07412762,164.7,164.54,1.9346]
[1746782936201,1.07412762,164.7,164.44,20.0312582]
[1746782936398,6.0771,164.56,164.45,1.9346]
[1746782936999,5.9362,164.71,164.45,1.9346]
[1746782937204,350.7966,164.7,164.45,1.9346]